[Event "CCT Chessable Masters Play-In 2025"]
[Site "Online"]
[Date "2025.02.17"]
[Round "1.72"]
[White "Bilguun, Sumiya"]
[Black "Gledura, Benjamin"]
[Result "0-1"]
[ECO "B13"]
[WhiteElo "2460"]
[BlackElo "2659"]
[PlyCount "156"]
[EventDate "2025.02.13"]
[EventType "swiss"]
[EventCountry "NET"]
[TimeControl "600"]
[WhiteClock "0:01:15"]
[BlackClock "0:02:34"]

1. e4 {[%emt 0:00:02]} c6 {[%emt 0:00:02]} 2. d4 {[%emt 0:00:02]} d5 {[%emt 0:00:01]} 3. exd5 {[%emt 0:00:01]} cxd5 {[%emt 0:00:01]} 4. Bd3 {[%emt 0:00:01]} Nc6 {[%emt 0:00:01]} 5. c3 {[%emt 0:00:01]} g6 {[%emt 0:00:02]} 6. Bf4 {[%emt 0:00:02]} Bg7 {[%emt 0:00:02]} 7. Ne2 {[%emt 0:00:04]} Nf6 {[%emt 0:00:05]} 8. Nd2 {[%emt 0:00:03]} O-O {[%emt 0:00:02]} 9. O-O {[%emt 0:00:01]} Bf5 {[%emt 0:00:04]} 10. Bxf5 {[%emt 0:00:03]} gxf5 {[%emt 0:00:00]} 11. Re1 {[%emt 0:00:02]} e6 {[%emt 0:00:01]} 12. Ng3 {[%emt 0:00:06]} Qb6 {[%emt 0:00:24]} 13. Rb1 {[%emt 0:00:15]} Ne7 {[%emt 0:00:02]} 14. Nh5 {[%emt 0:00:13]} Nxh5 {[%emt 0:00:11]} 15. Qxh5 {[%emt 0:00:02]} Ng6 {[%emt 0:00:01]} 16. Bh6 {[%emt 0:00:46]} Bxh6 {[%emt 0:00:02]} 17. Qxh6 {[%emt 0:00:01]} Qd8 {[%emt 0:00:00]} 18. Nf3 {[%emt 0:00:02]} Qf6 {[%emt 0:00:02]} 19. h4 {[%emt 0:00:22]} Qg7 {[%emt 0:00:03]} 20. Qd2 {[%emt 0:00:02]} Kh8 {[%emt 0:00:09]} 21. h5 {[%emt 0:00:14]} Ne7 {[%emt 0:00:03]} 22. g3 {[%emt 0:00:05]} Rg8 {[%emt 0:00:25]} 23. Kg2 {[%emt 0:00:02]} Qf6 {[%emt 0:00:09]} 24. Qf4 {[%emt 0:00:13]} Nc6 {[%emt 0:00:14]} 25. Ne5 {[%emt 0:00:35]} Rac8 {[%emt 0:00:13]} 26. Nxc6 {[%emt 0:01:00]} Rxc6 {[%emt 0:00:00]} 27. f3 {[%emt 0:00:25]} Qg5 {[%emt 0:00:17]} 28. Qxg5 {[%emt 0:00:03]} Rxg5 {[%emt 0:00:00]} 29. Rh1 {[%emt 0:00:03]} Kg7 {[%emt 0:00:18]} 30. f4 {[%emt 0:00:04]} Rg4 {[%emt 0:00:03]} 31. h6+ {[%emt 0:00:06]} Kf6 {[%emt 0:00:02]} 32. Kf3 {[%emt 0:00:01]} Rc8 {[%emt 0:00:10]} 33. Rbe1 {[%emt 0:00:02]} b5 {[%emt 0:00:04]} 34. a3 {[%emt 0:00:01]} a5 {[%emt 0:00:02]} 35. Re3 {[%emt 0:00:05]} Rgg8 {[%emt 0:00:05]} 36. Ra1 {[%emt 0:00:12]} Kg6 {[%emt 0:00:06]} 37. Rh1 {[%emt 0:00:05]} Rb8 {[%emt 0:00:18]} 38. Ree1 {[%emt 0:00:07]} b4 {[%emt 0:00:06]} 39. cxb4 {[%emt 0:00:06]} axb4 {[%emt 0:00:00]} 40. a4 {[%emt 0:00:01]} b3 {[%emt 0:00:07]} 41. Ra1 {[%emt 0:00:15]} Rb4 {[%emt 0:00:19]} 42. Rhd1 {[%emt 0:00:10]} Ra8 {[%emt 0:00:07]} 43. a5 {[%emt 0:00:01]} Ra6 {[%emt 0:00:04]} 44. Rd3 {[%emt 0:00:05]} Kxh6 {[%emt 0:00:08]} 45. Ra3 {[%emt 0:00:01]} Kg6 {[%emt 0:00:08]} 46. Raxb3 {[%emt 0:00:06]} Rxb3 {[%emt 0:00:02]} 47. Rxb3 {[%emt 0:00:01]} Rxa5 {[%emt 0:00:00]} 48. Rb8 {[%emt 0:00:01]} Kf6 {[%emt 0:00:04]} 49. b3 {[%emt 0:00:28]} Ra2 {[%emt 0:00:03]} 50. b4 {[%emt 0:00:16]} Ra3+ {[%emt 0:00:02]} 51. Kf2 {[%emt 0:00:01]} Rd3 {[%emt 0:00:02]} 52. b5 {[%emt 0:00:01]} Rxd4 {[%emt 0:00:02]} 53. b6 {[%emt 0:00:00]} Rb4 {[%emt 0:00:01]} 54. b7 {[%emt 0:00:01]} Rb3 {[%emt 0:00:06]} 55. Ke2 {[%emt 0:00:01]} d4 {[%emt 0:00:10]} 56. Kd2 {[%emt 0:00:01]} d3 {[%emt 0:00:02]} 57. Ke3 {[%emt 0:00:02]} Ke7 {[%emt 0:00:27]} 58. Kd2 {[%emt 0:00:01]} h5 {[%emt 0:00:18]} 59. Ke3 {[%emt 0:00:07]} Kd6 {[%emt 0:00:45]} 60. Rd8+ {[%emt 0:00:08]} Kc7 {[%emt 0:00:02]} 61. Rf8 {[%emt 0:00:01]} Kxb7 {[%emt 0:00:02]} 62. Rxf7+ {[%emt 0:00:01]} Kc6 {[%emt 0:00:01]} 63. Rh7 {[%emt 0:00:10]} Kd5 {[%emt 0:00:04]} 64. Rxh5 {[%emt 0:00:05]} d2+ {[%emt 0:00:07]} 65. Kxd2 {[%emt 0:00:01]} Rxg3 {[%emt 0:00:01]} 66. Ke2 {[%emt 0:00:05]} Ke4 {[%emt 0:00:02]} 67. Rh6 {[%emt 0:00:01]} Re3+ {[%emt 0:00:02]} 68. Kf2 {[%emt 0:00:33]} Kxf4 {[%emt 0:00:02]} 69. Rh4+ {[%emt 0:00:02]} Kg5 {[%emt 0:00:01]} 70. Rh8 {[%emt 0:00:02]} Ra3 {[%emt 0:00:02]} 71. Re8 {[%emt 0:00:02]} Kf6 {[%emt 0:00:03]} 72. Rf8+ {[%emt 0:00:01]} Ke5 {[%emt 0:00:01]} 73. Rb8 {[%emt 0:00:01]} f4 {[%emt 0:00:02]} 74. Rb4 {[%emt 0:00:03]} Kf5 {[%emt 0:00:02]} 75. Rb8 {[%emt 0:00:01]} e5 {[%emt 0:00:00]} 76. Rb7 {[%emt 0:00:01]} Ra2+ {[%emt 0:00:02]} 77. Kf1 {[%emt 0:00:02]} e4 {[%emt 0:00:01]} 78. Rb3 {[%emt 0:00:05]} e3 {[%emt 0:00:02]} 0-1

[Event "CCT Chessable Masters Play-In 2025"]
[Site "Online"]
[Date "2025.02.17"]
[Round "1.73"]
[White "Demchenko, Anton"]
[Black "Gurevich, Dmitry"]
[Result "1-0"]
[ECO "B63"]
[WhiteElo "2619"]
[BlackElo "2347"]
[PlyCount "39"]
[EventDate "2025.02.13"]
[EventType "swiss"]
[EventCountry "NET"]
[TimeControl "600"]
[WhiteClock "0:06:35"]
[BlackClock "0:04:43"]

1. e4 {[%emt 0:00:01]} c5 {[%emt 0:00:06]} 2. Nf3 {[%emt 0:00:02]} d6 {[%emt 0:00:02]} 3. d4 {[%emt 0:00:10]} cxd4 {[%emt 0:00:02]} 4. Nxd4 {[%emt 0:00:00]} Nf6 {[%emt 0:00:01]} 5. Nc3 {[%emt 0:00:02]} Nc6 {[%emt 0:00:03]} 6. Bg5 {[%emt 0:00:04]} e6 {[%emt 0:00:01]} 7. Qd2 {[%emt 0:00:01]} Be7 {[%emt 0:00:03]} 8. O-O-O {[%emt 0:00:05]} O-O {[%emt 0:00:02]} 9. h4 {[%emt 0:00:03]} Nxd4 {[%emt 0:00:25]} 10. Qxd4 {[%emt 0:00:02]} a6 {[%emt 0:00:01]} 11. e5 {[%emt 0:00:12]} dxe5 {[%emt 0:00:08]} 12. Qxe5 {[%emt 0:00:01]} Qe8 {[%emt 0:00:44]} 13. Rh3 {[%emt 0:00:59]} Nd7 {[%emt 0:01:28]} 14. Qc7 {[%emt 0:00:21]} Bd8 {[%emt 0:00:48]} 15. Bxd8 {[%emt 0:00:40]} Qxd8 {[%emt 0:00:03]} 16. Qxd8 {[%emt 0:00:00]} Rxd8 {[%emt 0:00:03]} 17. Rhd3 {[%emt 0:00:01]} Kf8 {[%emt 0:00:08]} 18. Na4 {[%emt 0:00:15]} Ke7 {[%emt 0:00:43]} 19. Nb6 {[%emt 0:00:05]} Rb8 {[%emt 0:00:26]} 20. g3 {[%emt 0:00:21]} 1-0

[Event "CCT Chessable Masters Play-In 2025"]
[Site "Online"]
[Date "2025.02.17"]
[Round "1.74"]
[White "Rozum, Ivan"]
[Black "Aryan Chopra"]
[Result "0-1"]
[ECO "E66"]
[WhiteElo "2443"]
[BlackElo "2620"]
[PlyCount "138"]
[EventDate "2025.02.13"]
[EventType "swiss"]
[EventCountry "NET"]
[TimeControl "600"]
[WhiteClock "0:00:37"]
[BlackClock "0:00:57"]

1. d4 {[%emt 0:00:06]} Nf6 {[%emt 0:00:06]} 2. c4 {[%emt 0:00:05]} g6 {[%emt 0:00:01]} 3. g3 {[%emt 0:00:02]} Bg7 {[%emt 0:00:02]} 4. Bg2 {[%emt 0:00:02]} O-O {[%emt 0:00:00]} 5. Nc3 {[%emt 0:00:03]} d6 {[%emt 0:00:01]} 6. Nf3 {[%emt 0:00:01]} c5 {[%emt 0:00:01]} 7. O-O {[%emt 0:00:14]} Nc6 {[%emt 0:00:02]} 8. d5 {[%emt 0:00:02]} Na5 {[%emt 0:00:01]} 9. Nd2 {[%emt 0:00:07]} a6 {[%emt 0:00:09]} 10. Rb1 {[%emt 0:00:49]} Rb8 {[%emt 0:00:07]} 11. b3 {[%emt 0:00:03]} b5 {[%emt 0:00:03]} 12. Bb2 {[%emt 0:00:06]} e6 {[%emt 0:01:41]} 13. dxe6 {[%emt 0:00:44]} Bxe6 {[%emt 0:00:00]} 14. cxb5 {[%emt 0:00:01]} axb5 {[%emt 0:00:00]} 15. Nde4 {[%emt 0:00:04]} Rb6 {[%emt 0:01:00]} 16. Qd2 {[%emt 0:00:54]} b4 {[%emt 0:00:17]} 17. Nxf6+ {[%emt 0:00:03]} Bxf6 {[%emt 0:00:01]} 18. Nd5 {[%emt 0:00:12]} Bxd5 {[%emt 0:00:02]} 19. Bxd5 {[%emt 0:00:03]} Bxb2 {[%emt 0:00:02]} 20. Qxb2 {[%emt 0:00:16]} Nc6 {[%emt 0:00:01]} 21. Rfd1 {[%emt 0:00:06]} Ne7 {[%emt 0:00:29]} 22. Bf3 {[%emt 0:00:03]} Qd7 {[%emt 0:00:04]} 23. Rd2 {[%emt 0:00:07]} Qe6 {[%emt 0:00:04]} 24. Rbd1 {[%emt 0:00:02]} h5 {[%emt 0:00:08]} 25. h4 {[%emt 0:00:05]} Rd8 {[%emt 0:00:03]} 26. Rd3 {[%emt 0:00:06]} Ra6 {[%emt 0:00:58]} 27. Re3 {[%emt 0:00:34]} Qd7 {[%emt 0:00:01]} 28. Qf6 {[%emt 0:00:03]} Re8 {[%emt 0:00:00]} 29. Rd2 {[%emt 0:00:20]} Rb6 {[%emt 0:00:58]} 30. Red3 {[%emt 0:00:13]} Qf5 {[%emt 0:00:11]} 31. Qb2 {[%emt 0:00:14]} Rd8 {[%emt 0:00:01]} 32. Re3 {[%emt 0:00:05]} Rd7 {[%emt 0:00:00]} 33. Be4 {[%emt 0:00:09]} Qg4 {[%emt 0:00:07]} 34. Qf6 {[%emt 0:00:02]} Qe6 {[%emt 0:00:01]} 35. Qf4 {[%emt 0:00:12]} Qg4 {[%emt 0:00:06]} 36. Qh6 {[%emt 0:00:14]} Rb8 {[%emt 0:00:01]} 37. Kg2 {[%emt 0:00:14]} Nf5 {[%emt 0:00:02]} 38. Bxf5 {[%emt 0:00:02]} Qxf5 {[%emt 0:00:00]} 39. Rf3 {[%emt 0:00:04]} Qe4 {[%emt 0:00:02]} 40. Kg1 {[%emt 0:00:04]} Ra8 {[%emt 0:00:08]} 41. Rfd3 {[%emt 0:00:01]} d5 {[%emt 0:00:02]} 42. Qg5 {[%emt 0:00:02]} Rad8 {[%emt 0:00:02]} 43. Re3 {[%emt 0:00:03]} Qg4 {[%emt 0:00:01]} 44. Qf6 {[%emt 0:00:03]} Rd6 {[%emt 0:00:06]} 45. Qe7 {[%emt 0:00:06]} R8d7 {[%emt 0:00:04]} 46. Qe8+ {[%emt 0:00:02]} Kg7 {[%emt 0:00:00]} 47. Qc8 {[%emt 0:00:03]} c4 {[%emt 0:00:07]} 48. Re8 {[%emt 0:00:06]} c3 {[%emt 0:00:01]} 49. Rd3 {[%emt 0:00:04]} d4 {[%emt 0:00:36]} 50. Rg8+ {[%emt 0:00:04]} Kf6 {[%emt 0:00:01]} 51. Rf3+ {[%emt 0:00:00]} Qxf3 {[%emt 0:00:01]} 52. exf3 {[%emt 0:00:01]} d3 {[%emt 0:00:00]} 53. Qc5 {[%emt 0:00:52]} Rd5 {[%emt 0:00:00]} 54. Qxb4 {[%emt 0:00:14]} d2 {[%emt 0:00:05]} 55. Qxc3+ {[%emt 0:00:01]} Rd4 {[%emt 0:00:01]} 56. Kg2 {[%emt 0:00:23]} d1=Q {[%emt 0:00:02]} 57. Qe3 {[%emt 0:00:01]} Qd2 {[%emt 0:00:09]} 58. Qe8 {[%emt 0:00:01]} Rd8 {[%emt 0:00:07]} 59. Qc6+ {[%emt 0:00:01]} R8d6 {[%emt 0:00:06]} 60. Qc5 {[%emt 0:00:02]} R4d5 {[%emt 0:00:03]} 61. Qc7 {[%emt 0:00:04]} Rd7 {[%emt 0:00:04]} 62. Qc6+ {[%emt 0:00:01]} R5d6 {[%emt 0:00:00]} 63. Qc5 {[%emt 0:00:03]} Qd5 {[%emt 0:00:03]} 64. Qc1 {[%emt 0:00:01]} Ke7 {[%emt 0:00:08]} 65. Qh6 {[%emt 0:00:01]} Rd8 {[%emt 0:00:09]} 66. Rg7 {[%emt 0:00:03]} Rf6 {[%emt 0:00:02]} 67. Qe3+ {[%emt 0:00:02]} Kf8 {[%emt 0:00:00]} 68. Qh6 {[%emt 0:00:01]} Qxf3+ {[%emt 0:00:01]} 69. Kh3 {[%emt 0:00:01]} Qh1# {[%emt 0:00:01]} 0-1

[Event "CCT Chessable Masters Play-In 2025"]
[Site "Online"]
[Date "2025.02.17"]
[Round "1.75"]
[White "Fressinet, Laurent"]
[Black "Cuenca Jimenez, Jose Fernando"]
[Result "1-0"]
[ECO "A17"]
[WhiteElo "2588"]
[BlackElo "2479"]
[PlyCount "121"]
[EventDate "2025.02.13"]
[EventType "swiss"]
[EventCountry "NET"]
[TimeControl "600"]
[WhiteClock "0:01:54"]
[BlackClock "0:00:14"]

1. Nf3 {[%emt 0:00:01]} d5 {[%emt 0:00:03]} 2. e3 {[%emt 0:00:02]} Nf6 {[%emt 0:00:03]} 3. c4 {[%emt 0:00:02]} e6 {[%emt 0:00:03]} 4. Nc3 {[%emt 0:00:01]} Bd6 {[%emt 0:00:16]} 5. b3 {[%emt 0:00:03]} O-O {[%emt 0:00:04]} 6. Bb2 {[%emt 0:00:01]} Re8 {[%emt 0:00:22]} 7. Nb5 {[%emt 0:00:04]} Be7 {[%emt 0:00:19]} 8. Be5 {[%emt 0:00:02]} Na6 {[%emt 0:00:07]} 9. Be2 {[%emt 0:00:11]} c6 {[%emt 0:00:11]} 10. Nc3 {[%emt 0:00:01]} Nc5 {[%emt 0:00:23]} 11. Qc2 {[%emt 0:00:03]} Bd6 {[%emt 0:00:11]} 12. d4 {[%emt 0:00:17]} Nce4 {[%emt 0:00:05]} 13. O-O {[%emt 0:00:04]} Nxc3 {[%emt 0:00:17]} 14. Qxc3 {[%emt 0:00:00]} Qc7 {[%emt 0:00:51]} 15. Bd3 {[%emt 0:01:05]} Nd7 {[%emt 0:00:32]} 16. Bxd6 {[%emt 0:00:23]} Qxd6 {[%emt 0:00:00]} 17. e4 {[%emt 0:00:02]} dxe4 {[%emt 0:00:15]} 18. Bxe4 {[%emt 0:00:00]} Nf6 {[%emt 0:00:48]} 19. Bc2 {[%emt 0:00:03]} c5 {[%emt 0:00:04]} 20. Rad1 {[%emt 0:00:12]} b6 {[%emt 0:00:21]} 21. dxc5 {[%emt 0:01:25]} Qxc5 {[%emt 0:00:00]} 22. Qd4 {[%emt 0:00:17]} Bb7 {[%emt 0:00:26]} 23. Qxc5 {[%emt 0:00:02]} bxc5 {[%emt 0:00:00]} 24. Ne5 {[%emt 0:00:01]} Red8 {[%emt 0:00:09]} 25. f3 {[%emt 0:00:04]} Kf8 {[%emt 0:00:03]} 26. Kf2 {[%emt 0:00:09]} Ke7 {[%emt 0:00:05]} 27. Ke3 {[%emt 0:00:09]} h6 {[%emt 0:00:17]} 28. Rd2 {[%emt 0:00:23]} Rxd2 {[%emt 0:00:04]} 29. Kxd2 {[%emt 0:00:00]} Nd7 {[%emt 0:00:09]} 30. Nd3 {[%emt 0:00:01]} a5 {[%emt 0:00:04]} 31. Kc3 {[%emt 0:00:04]} Kd6 {[%emt 0:00:04]} 32. Rd1 {[%emt 0:00:01]} Kc7 {[%emt 0:00:00]} 33. Nf2 {[%emt 0:00:12]} Ra6 {[%emt 0:00:06]} 34. Be4 {[%emt 0:00:11]} Bxe4 {[%emt 0:00:13]} 35. Nxe4 {[%emt 0:00:01]} Rc6 {[%emt 0:00:01]} 36. f4 {[%emt 0:00:07]} f5 {[%emt 0:00:04]} 37. Nf2 {[%emt 0:00:06]} Rd6 {[%emt 0:00:04]} 38. Re1 {[%emt 0:00:11]} g5 {[%emt 0:00:10]} 39. Nd3 {[%emt 0:00:09]} Kc6 {[%emt 0:00:29]} 40. g3 {[%emt 0:00:09]} g4 {[%emt 0:00:12]} 41. a3 {[%emt 0:00:09]} h5 {[%emt 0:00:05]} 42. b4 {[%emt 0:00:09]} axb4+ {[%emt 0:00:05]} 43. axb4 {[%emt 0:00:01]} cxb4+ {[%emt 0:00:02]} 44. Nxb4+ {[%emt 0:00:00]} Kc7 {[%emt 0:00:03]} 45. Nd3 {[%emt 0:00:11]} Nf6 {[%emt 0:00:06]} 46. Nc5 {[%emt 0:00:02]} Kc6 {[%emt 0:00:07]} 47. Kb4 {[%emt 0:00:02]} Nd7 {[%emt 0:00:12]} 48. Nb3 {[%emt 0:00:17]} Kc7 {[%emt 0:00:25]} 49. c5 {[%emt 0:00:08]} Ra6 {[%emt 0:00:02]} 50. Nd4 {[%emt 0:00:07]} Nf8 {[%emt 0:00:03]} 51. Re2 {[%emt 0:00:07]} Kd7 {[%emt 0:00:05]} 52. Kb5 {[%emt 0:00:05]} Ra3 {[%emt 0:00:02]} 53. Kb6 {[%emt 0:00:06]} Rd3 {[%emt 0:00:04]} 54. c6+ {[%emt 0:00:02]} Kc8 {[%emt 0:00:14]} 55. Ra2 {[%emt 0:00:02]} Nd7+ {[%emt 0:00:03]} 56. cxd7+ {[%emt 0:00:05]} Kxd7 {[%emt 0:00:00]} 57. Kc5 {[%emt 0:00:04]} Ke7 {[%emt 0:00:02]} 58. Re2 {[%emt 0:00:03]} Kf7 {[%emt 0:00:06]} 59. Nxe6 {[%emt 0:00:03]} h4 {[%emt 0:00:00]} 60. gxh4 {[%emt 0:00:03]} Rh3 {[%emt 0:00:05]} 61. Ng5+ {[%emt 0:00:01]} 1-0

[Event "CCT Chessable Masters Play-In 2025"]
[Site "Online"]
[Date "2025.02.17"]
[Round "1.76"]
[White "Batsuren, Dambasuren"]
[Black "Nguyen, Ngoc Truong Son"]
[Result "0-1"]
[ECO "D36"]
[WhiteElo "2537"]
[BlackElo "2632"]
[PlyCount "90"]
[EventDate "2025.02.13"]
[EventType "swiss"]
[EventCountry "NET"]
[TimeControl "600"]
[WhiteClock "0:01:05"]
[BlackClock "0:02:34"]

1. d4 {[%emt 0:00:02]} Nf6 {[%emt 0:00:03]} 2. c4 {[%emt 0:00:00]} e6 {[%emt 0:00:01]} 3. Nc3 {[%emt 0:00:03]} d5 {[%emt 0:00:01]} 4. cxd5 {[%emt 0:00:01]} exd5 {[%emt 0:00:01]} 5. Bg5 {[%emt 0:00:01]} c6 {[%emt 0:00:00]} 6. e3 {[%emt 0:00:01]} Be7 {[%emt 0:00:02]} 7. Bd3 {[%emt 0:00:01]} Nbd7 {[%emt 0:00:02]} 8. Qc2 {[%emt 0:00:21]} Nf8 {[%emt 0:00:02]} 9. O-O-O {[%emt 0:01:15]} Ne6 {[%emt 0:00:02]} 10. Bxf6 {[%emt 0:00:02]} Bxf6 {[%emt 0:00:01]} 11. f4 {[%emt 0:00:00]} Bd7 {[%emt 0:00:18]} 12. Kb1 {[%emt 0:00:13]} Qa5 {[%emt 0:00:32]} 13. Nf3 {[%emt 0:00:04]} O-O-O {[%emt 0:00:05]} 14. g4 {[%emt 0:00:28]} h6 {[%emt 0:00:08]} 15. h4 {[%emt 0:00:03]} Kb8 {[%emt 0:00:07]} 16. g5 {[%emt 0:00:35]} Be7 {[%emt 0:00:04]} 17. Ne5 {[%emt 0:00:26]} Be8 {[%emt 0:00:06]} 18. Bf5 {[%emt 0:00:03]} Nc7 {[%emt 0:00:04]} 19. Rdg1 {[%emt 0:00:24]} f6 {[%emt 0:00:13]} 20. gxf6 {[%emt 0:00:06]} Bxf6 {[%emt 0:00:01]} 21. Ng4 {[%emt 0:00:14]} Bh5 {[%emt 0:00:49]} 22. Nxf6 {[%emt 0:00:10]} gxf6 {[%emt 0:00:00]} 23. Rg7 {[%emt 0:00:01]} Ne8 {[%emt 0:00:03]} 24. Rg3 {[%emt 0:00:16]} Nd6 {[%emt 0:00:04]} 25. Rhg1 {[%emt 0:00:06]} Rhe8 {[%emt 0:00:05]} 26. Bd3 {[%emt 0:00:02]} Re7 {[%emt 0:00:06]} 27. Qf2 {[%emt 0:00:24]} f5 {[%emt 0:00:23]} 28. Rg8 {[%emt 0:00:11]} Bg4 {[%emt 0:00:08]} 29. Rg6 {[%emt 0:00:50]} h5 {[%emt 0:00:04]} 30. Be2 {[%emt 0:00:11]} a6 {[%emt 0:00:36]} 31. Bxg4 {[%emt 0:00:10]} hxg4 {[%emt 0:00:21]} 32. h5 {[%emt 0:00:00]} Rh7 {[%emt 0:00:04]} 33. h6 {[%emt 0:00:13]} Nf7 {[%emt 0:00:16]} 34. Qh4 {[%emt 0:00:18]} Qc7 {[%emt 0:00:31]} 35. Qf6 {[%emt 0:00:05]} Rd6 {[%emt 0:00:30]} 36. Qxf5 {[%emt 0:00:05]} Nxh6 {[%emt 0:00:18]} 37. Qe5 {[%emt 0:00:28]} Rxg6 {[%emt 0:00:10]} 38. Qe8+ {[%emt 0:00:00]} Qc8 {[%emt 0:00:05]} 39. Qxg6 {[%emt 0:00:00]} Qf5+ {[%emt 0:00:01]} 40. Qxf5 {[%emt 0:00:06]} Nxf5 {[%emt 0:00:00]} 41. e4 {[%emt 0:00:11]} dxe4 {[%emt 0:00:03]} 42. Nxe4 {[%emt 0:00:00]} Re7 {[%emt 0:00:21]} 43. Nf6 {[%emt 0:00:24]} g3 {[%emt 0:00:26]} 44. Kc2 {[%emt 0:00:01]} Nxd4+ {[%emt 0:00:05]} 45. Kd3 {[%emt 0:00:20]} Ne2 {[%emt 0:00:04]} 0-1

[Event "CCT Chessable Masters Play-In 2025"]
[Site "Online"]
[Date "2025.02.17"]
[Round "1.77"]
[White "Madaminov, Mukhiddin"]
[Black "Munkhgal, Gombosuren"]
[Result "1-0"]
[ECO "C58"]
[WhiteElo "2521"]
[BlackElo "2406"]
[PlyCount "125"]
[EventDate "2025.02.13"]
[EventType "swiss"]
[EventCountry "NET"]
[TimeControl "600"]
[WhiteClock "0:00:55"]
[BlackClock "0:00:01"]

1. e4 {[%emt 0:00:02]} e5 {[%emt 0:00:02]} 2. Nf3 {[%emt 0:00:02]} Nc6 {[%emt 0:00:01]} 3. Bc4 {[%emt 0:00:01]} Nf6 {[%emt 0:00:01]} 4. Ng5 {[%emt 0:00:02]} d5 {[%emt 0:00:08]} 5. exd5 {[%emt 0:00:01]} Na5 {[%emt 0:00:01]} 6. Bb5+ {[%emt 0:00:01]} c6 {[%emt 0:00:01]} 7. dxc6 {[%emt 0:00:01]} bxc6 {[%emt 0:00:00]} 8. Bd3 {[%emt 0:00:01]} h6 {[%emt 0:00:20]} 9. Ne4 {[%emt 0:00:15]} Nd5 {[%emt 0:00:00]} 10. O-O {[%emt 0:00:04]} Nf4 {[%emt 0:00:14]} 11. Be2 {[%emt 0:00:05]} f5 {[%emt 0:00:06]} 12. Ng3 {[%emt 0:00:04]} Bc5 {[%emt 0:01:04]} 13. c3 {[%emt 0:00:16]} Bb6 {[%emt 0:00:01]} 14. d4 {[%emt 0:00:06]} Nxe2+ {[%emt 0:00:40]} 15. Qxe2 {[%emt 0:00:45]} O-O {[%emt 0:00:00]} 16. b4 {[%emt 0:00:07]} Nb7 {[%emt 0:00:12]} 17. dxe5 {[%emt 0:00:02]} f4 {[%emt 0:00:08]} 18. Qc4+ {[%emt 0:00:04]} Kh8 {[%emt 0:00:04]} 19. Bxf4 {[%emt 0:00:08]} Qh4 {[%emt 0:00:02]} 20. Ne2 {[%emt 0:01:00]} g5 {[%emt 0:00:02]} 21. Nd2 {[%emt 0:00:12]} gxf4 {[%emt 0:00:05]} 22. Nf3 {[%emt 0:00:30]} Qg4 {[%emt 0:00:06]} 23. h3 {[%emt 0:00:34]} Qg8 {[%emt 0:00:02]} 24. Qxc6 {[%emt 0:00:08]} Qe6 {[%emt 0:00:45]} 25. Qe4 {[%emt 0:00:20]} Qf5 {[%emt 0:00:05]} 26. Qxf5 {[%emt 0:00:26]} Bxf5 {[%emt 0:00:03]} 27. Nxf4 {[%emt 0:00:04]} Be4 {[%emt 0:00:02]} 28. Ne6 {[%emt 0:00:04]} Rg8 {[%emt 0:00:20]} 29. Nh4 {[%emt 0:00:45]} Rae8 {[%emt 0:00:05]} 30. Nd4 {[%emt 0:00:00]} Bd8 {[%emt 0:00:27]} 31. Nhf3 {[%emt 0:00:01]} Ref8 {[%emt 0:00:05]} 32. Kh2 {[%emt 0:00:04]} Bb6 {[%emt 0:00:05]} 33. Rae1 {[%emt 0:00:16]} Bd5 {[%emt 0:00:11]} 34. Re3 {[%emt 0:00:08]} Bxd4 {[%emt 0:00:24]} 35. cxd4 {[%emt 0:00:00]} Nd8 {[%emt 0:00:02]} 36. Nh4 {[%emt 0:00:24]} Rf4 {[%emt 0:00:04]} 37. g4 {[%emt 0:00:02]} Ne6 {[%emt 0:00:05]} 38. Kg3 {[%emt 0:00:03]} Kh7 {[%emt 0:00:30]} 39. f3 {[%emt 0:00:01]} Rxd4 {[%emt 0:00:25]} 40. Ra3 {[%emt 0:00:00]} Ra8 {[%emt 0:00:30]} 41. Nf5 {[%emt 0:00:01]} Rxb4 {[%emt 0:00:04]} 42. Rd1 {[%emt 0:00:03]} Nf4 {[%emt 0:00:11]} 43. Ra5 {[%emt 0:00:01]} Be6 {[%emt 0:00:01]} 44. Ne3 {[%emt 0:00:11]} Ne2+ {[%emt 0:00:06]} 45. Kf2 {[%emt 0:00:01]} Rb2 {[%emt 0:00:01]} 46. Rd6 {[%emt 0:00:00]} Rf8 {[%emt 0:01:06]} 47. Rxa7+ {[%emt 0:00:01]} Kg8 {[%emt 0:00:02]} 48. Re7 {[%emt 0:00:04]} Nd4+ {[%emt 0:00:12]} 49. Kg3 {[%emt 0:00:01]} Rxf3+ {[%emt 0:00:02]} 50. Kh4 {[%emt 0:00:01]} Rb4 {[%emt 0:00:11]} 51. Rd8+ {[%emt 0:00:12]} Rf8 {[%emt 0:00:01]} 52. Rxd4 {[%emt 0:00:01]} Rxd4 {[%emt 0:00:05]} 53. Rxe6 {[%emt 0:00:00]} Re4 {[%emt 0:00:06]} 54. Nd5 {[%emt 0:00:13]} Kg7 {[%emt 0:00:00]} 55. Kh5 {[%emt 0:00:17]} Rf3 {[%emt 0:00:05]} 56. h4 {[%emt 0:00:03]} Rg3 {[%emt 0:00:01]} 57. Nf6 {[%emt 0:00:19]} Ra4 {[%emt 0:00:02]} 58. Re7+ {[%emt 0:00:05]} Kf8 {[%emt 0:00:00]} 59. Rh7 {[%emt 0:00:11]} Ra5 {[%emt 0:00:01]} 60. Kg6 {[%emt 0:00:04]} Rxg4+ {[%emt 0:00:12]} 61. Nxg4 {[%emt 0:00:01]} h5 {[%emt 0:00:01]} 62. Nf6 {[%emt 0:00:03]} Ra7 {[%emt 0:00:01]} 63. Rh8+ {[%emt 0:00:03]} 1-0